Cogmind - Beta 13 @@@ ROGUE MODE // 2024.04.11 @ 18:10:28 Player: NikedNOGsing_in_can't Result: Destroyed by YI-UF0 with YI-UF0's Doublenader Performance ------------- Evolutions (0) 0 Regions Visited (2) 400 Robots Destroyed (20) 100 Value Destroyed (375) 375 Prototype IDs (0) 0 Alien Tech Used (0) 0 Bonus (0) 0 TOTAL SCORE: 875 Bonus ------- None Cogmind --------- Core Integrity 0/250 Matter 189/300 Energy 67/100 System Corruption 7% Temperature Cool (8) Movement Core (100) Ox1 Location -10/Mines Parts ------- > --- POWER (1) -------- (None) > --- PROPULSION (2) --- (None) > --- UTILITY (2) ------ Transport Network Coupler > --- WEAPON (2) ------- Particle Gun Grenade Launcher > --- INVENTORY (5) ---- Ion Engine Improved Heat Sink Peak State ------------ > --- POWER ------------ Ion Engine > --- PROPULSION ------- Light Treads Light Treads > --- UTILITY ---------- Large Storage Unit Hacking Suite > --- WEAPON ----------- Particle Gun Assault Rifle > --- INVENTORY -------- Light Nuclear Core Light Treads Hover Unit Hover Unit Improved Heat Sink Sensor Array Transport Network Coupler Light Armor Plating Light Armor Plating Small Laser Small Laser Assault Rifle Datajack Mining Laser [Rating: 11] Favorites ----------- Power Ion Engine Engine Ion Engine Propulsion Light Treads Treads Light Treads Flight Unit Flight Unit Utility Large Storage Unit Device Sensor Array Storage Large Storage Unit Processor Transport Network Coupler Hackware Hacking Suite Protection Light Armor Plating Weapon Medium Laser Energy Gun Medium Laser Ballistic Gun Assault Rifle Launcher Grenade Launcher Special Weapon Mining Laser Special Melee Weapon Datajack Build | -11 -10 -10 ------- Run | Yrd Mat Min Slots Evolved . | . . . Power . | . . . Propulsion . | . . . Utility . | . . . Weapon . | . . . Parts Attached 30 | 6 15 9 Power 2 | 1 1 . Engine 2 | 1 1 . Core . | . . . Reactor . | . . . Propulsion 7 | 2 2 3 Treads 5 | 2 2 1 Leg . | . . . Wheel . | . . . Hover . | . . . Flight 2 | . . 2 Utility 6 | 1 3 2 Device 1 | . 1 . Storage 2 | 1 1 . Processor 1 | . . 1 Hackware 1 | . 1 . Protection 1 | . . 1 Artifact . | . . . Weapon 15 | 2 9 4 Energy Gun 5 | 2 2 1 Energy Cannon . | . . . Ballistic Gun 5 | . 4 1 Ballistic Cannon . | . . . Launcher 1 | . . 1 Special Weapon 1 | . . 1 Impact Weapon . | . . . Slashing Weapon . | . . . Piercing Weapon . | . . . Special Melee Weapon 3 | . 3 . Unidentified Prototypes . | . . . Parts Lost 7 | . 1 6 Power 1 | . 1 . Propulsion 3 | . . 3 Utility 2 | . . 2 Weapon 1 | . . 1 Highest Loss Streak 6 | . 1 6 To Critical Strikes . | . . . Average Slot Usage (%) 91 | . 93 60 Engine 13 | . 14 8 Treads 23 | . 24 10 Device 4 | . 5 . Storage 16 | . 17 3 Hackware 3 | . 3 3 Energy Gun 15 | . 16 . Ballistic Gun 5 | . 5 7 Special Melee Weapon 5 | . 5 . Naked Turns . | . . . Heaviest Build 33 | 13 33 29 Greatest Support 40 | 40 40 40 Greatest Overweight (x) 1 | . 1 1 Average Overweight (x) . | . . . Largest Inventory Capacity 15 | 8 15 15 Average Capacity 13 | 6 13 8 Most Carried 15 | 3 15 15 Average Carried 7 | . 7 7 Final Capacity 15 | 8 15 5 Final Carried 15 | 1 15 2 Class Distribution -------------------- 100% | Mutant Dominant Class ---------------- Mutant | -10/Materials Mutant | -10/Mines Resources | -11 -10 -10 ----------- Run | Yrd Mat Min Matter Collected 443 | 260 183 . Remotely . | . . . Salvage Created 666 | 97 569 . Parts 42 | 5 37 . Haulers Intercepted 2 | . 2 . Recyclers Shooed . | . . . Parts Field Recycled . | . . . Retrieved Matter . | . . . Parts Self-Destructed . | . . . Prevented . | . . . Kills | -11 -10 -10 ------- Run | Yrd Mat Min Combat Hostiles Destroyed 10 | . 10 . Guns 10 | . 10 . Classes Destroyed 8 | 1 7 . Worker 2 | . 2 . Builder 1 | . 1 . Hauler 2 | . 2 . Recycler 1 | 1 . . Operator 2 | . 2 . Watcher 2 | . 2 . Swarmer 3 | . 3 . Grunt 7 | . 7 . Best Kill Streak 4 | 1 4 . Combat Bots Only 4 | . 4 . Max Kills in Single Turn 1 | 1 1 . Gunslinging . | . . . Exploded . | . . . Melee . | . . . Uniques/NPCs Destroyed . | . . . Combat | -11 -10 -10 -------- Run | Yrd Mat Min Hostile Shots Fired 77 | . 39 38 Missed 18 | . 6 12 Damage Taken 992 | . 387 605 Core 254 | . 83 171 Absorbed by Shields . | . . . Regen/Repaired (Parts) 134 | . 134 . Core Remaining (%) 100 | 100 . . Volleys Fired 68 | 1 64 3 Largest 2 | 2 2 2 Hottest 95 | 90 90 95 Shots Fired 124 | 2 117 5 Gun 122 | 2 117 3 Cannon . | . . . Launcher 2 | . . 2 Special . | . . . Kinetic 36 | . 34 2 Thermal 86 | 2 83 1 Explosive 2 | . . 2 Electromagnetic . | . . . Robot Hit Streak 14 | 2 14 3 Robot Miss Streak 3 | . 3 1 Penetration Max . | . . . Secondary Targets . | . . . Shots Hit Robots 91 | 2 86 3 Core Hits 37 | 2 35 . Critical Kills . | . . . Critical Parts Destroyed . | . . . Critical Strikes 6 | . 6 . Burn 6 | . 6 . Melee Attacks 3 | . 3 . Impact . | . . . Slashing . | . . . Piercing . | . . . Sneak Attacks 2 | . 2 . Combat Hostiles . | . . . Follow-up Attacks . | . . . Damage Inflicted 1019 | 24 952 43 Guns 1002 | 24 952 26 Cannons . | . . . Explosions 17 | . . 17 Melee . | . . . Ramming . | . . . Kinetic 200 | . 174 26 Thermal 802 | 24 778 . Explosive 17 | . . 17 Electromagnetic . | . . . Impact . | . . . Slashing . | . . . Piercing . | . . . Highest Corruption 7 | . . 7 Average Corruption 5 | . . 5 Corruption Purged . | . . . Corruption Blocked . | . . . Effects 3 | . . 3 Matter Fused 2 | . . 2 Heat Flow Errors 1 | . . 1 Overload Shots . | . . . Overflow Damage . | . . . Projectiles . | . . . Explosions . | . . . Melee . | . . . Knockbacks . | . . . Impact . | . . . Kinetic . | . . . Secondary . | . . . Self-Inflicted Damage 24 | . . 24 Shots 2 | . . 2 Rammed . | . . . Targets Rammed . | . . . Kicked . | . . . Crushed . | . . . Highest Temperature 490 | 30 490 276 Average Temperature 119 | 18 120 134 Received Heat Transfer 251 | . 231 20 Effects 9 | . 9 . Shutdowns 3 | . 3 . Energy Bleed 2 | . 2 . Short Circuit 1 | . 1 . Damage (minor) 1 | . 1 . Damage (major) 2 | . 2 . Siege Activations . | . . . Robots Corrupted . | . . . Combat Hostiles . | . . . Parts Fried . | . . . Impact Corruptions . | . . . Robots Melted . | . . . Combat Hostiles . | . . . Parts Melted 5 | . 5 . Heat Transferred 2658 | 62 2596 . Parts Sabotaged . | . . . Parts Stolen . | . . . Parts Stripped . | . . . Power Chain Reactions . | . . . Alert | -11 -10 -10 ------- Run | Yrd Mat Min Peak Influence 153 | 5 153 81 Initial 36 | . 3 36 Average 56 | 2 61 42 Maximum Alert Level . | . . . Low Security (%) 100 | 100 100 100 Level 1 . | . . . Level 2 . | . . . Level 3 . | . . . Level 4 . | . . . Level 5 . | . . . High Security . | . . . Max Security . | . . . Squads Dispatched 2 | . 2 . Investigation 1 | . 1 . Extermination . | . . . Reinforcement 1 | . 1 . Assault . | . . . Garrison . | . . . Intercept . | . . . Searches Triggered . | . . . Construction Impeded . | . . . Haulers Reinforced . | . . . Active Scanning Responses . | . . . Cargo Convoy Interrupts . | . . . Stealth | -11 -10 -10 --------- Run | Yrd Mat Min Distress Signals . | . . . Communications Jammed . | . . . Distress Signals . | . . . Times Spotted 43 | . 24 19 Peak Tracking Total 9 | . 3 9 Tactical Retreats 2 | . . 2 Traps | -11 -10 -10 ------- Run | Yrd Mat Min Traps Triggered . | . . . Indirectly . | . . . Trap Hack Attempts . | . . . Triggered . | . . . Disarmed . | . . . Reprogrammed . | . . . Reused . | . . . Traps Extracted . | . . . Installed . | . . . Triggered . | . . . Machines | -11 -10 -10 ---------- Run | Yrd Mat Min Machines Disabled . | . . . Max in Single Turn . | . . . Machines Repaired . | . . . Machines Dismantled . | . . . Machines Sabotaged . | . . . Overloaded Fab Kills . | . . . Hacking | -11 -10 -10 --------- Run | Yrd Mat Min Machines Accessed 7 | . 6 1 Terminals 5 | . 4 1 Fabricators . | . . . Repair Stations 1 | . 1 . Recycling Units 1 | . 1 . Scanalyzers . | . . . Garrison Access . | . . . Total Hacks 11 | . 10 1 Successful 6 | . 5 1 Failed 5 | . 5 . Catastrophic 1 | . 1 . Database Lockouts . | . . . Manual 3 | . 3 . Terminals 6 | . 5 1 Fabricators . | . . . Repair Stations 2 | . 2 . Recycling Units 3 | . 3 . Scanalyzers . | . . . Garrison Access . | . . . Terminal Hacks 3 | . 2 1 Branch Access Points 1 | . 1 . Hauler Manifests 1 | . 1 . Zone Layout 1 | . . 1 Fabricator Hacks . | . . . Repair Station Hacks 2 | . 2 . Scan Component 1 | . 1 . Repair 1 | . 1 . Recycling Unit Hacks 1 | . 1 . Report Inventory 1 | . 1 . Scanalyzer . | . . . Garrison Access Hacks . | . . . Unauthorized Hacks . | . . . Terminals . | . . . Fabricators . | . . . Repair Stations . | . . . Recycling Units . | . . . Scanalyzers . | . . . Garrison Access . | . . . Data Cores Recovered 1 | . 1 . Used 1 | . 1 . Hacking Detections 3 | . 3 . Full Trace Events 1 | . 1 . Feedback Events . | . . . Feedback Blocked . | . . . Robot Schematics Acquired . | . . . Robots Built . | . . . Authchips . | . . . Time . | . . . Total Robot Build Rating . | . . . Part Schematics Acquired . | . . . Parts Built . | . . . Authchips . | . . . Time . | . . . Total Part Build Rating . | . . . Parts Repaired 1 | . 1 . Time 36 | . 36 . Parts Recycled . | . . . Recycled Matter . | . . . Retrieved Matter . | . . . Retrieved Components . | . . . Parts Scanalyzed . | . . . Part Schematics Acquired . | . . . Parts Damaged . | . . . Bothacking | -11 -10 -10 ------------ Run | Yrd Mat Min Used RIF Installer . | . . . Robots Hacked 1 | . 1 . Non-combat 1 | . 1 . Combat . | . . . Robot Hacks Applied 1 | . 1 . find_recycling 1 | . 1 . Relay Couplers Released . | . . . Fabnet Peak Effective % . | . . . Robots Rewired . | . . . Allies Hacked . | . . . Hacks Repelled . | . . . Allies | -11 -10 -10 -------- Run | Yrd Mat Min Total Allies . | . . . Largest Group . | . . . Highest-Rated Group . | . . . Highest-Rated Ally . | . . . Total Orders . | . . . Ally Attacks . | . . . Total Damage . | . . . Kills . | . . . Allies Corrupted . | . . . Allies Melted . | . . . Intel | -11 -10 -10 ------- Run | Yrd Mat Min Robot Analysis Total . | . . . Derelict Logs Recovered . | . . . Drone Launches . | . . . Drone Recoveries . | . . . Exploration | -11 -10 -10 ------------- Run | Yrd Mat Min Turns Passed 1280 | 68 1135 77 Spaces Moved 562 | 38 432 92 Core 7 | 7 . . Treads 476 | 31 432 13 Legs . | . . . Wheels . | . . . Hover . | . . . Flight 79 | . . 79 Fastest Speed 37 | 50 160 37 Average Speed 163 | 139 187 59 Slowest Speed 240 | 160 240 160 Overloaded Moves . | . . . Propulsion Burnouts . | . . . Robots Hopped . | . . . Cave-ins Triggered . | . . . Exploration Rate (%) 29 | 4 58 26 Regions Visited 2 Branch Regions 1 Pre-discovered Areas . | . . . Known Exits Taken 1 | . 1 . Unknown Exits Taken 1 | 1 . . Scrap Searched . | . . . Spaces Dug . | . . . Terrain Destroyed 9 | . . 9 Melee . | . . . Projectile . | . . . AOE 9 | . . 9 Terrain Rammed . | . . . Walls Destroyed . | . . . Machines Disabled . | . . . Actions | -11 -10 -10 --------- Run | Yrd Mat Min Total 807 | 51 642 114 Wait 104 | . 102 2 Move 560 | 37 431 92 Hop . | . . . Pick Up 30 | 7 22 1 Fast Attach 1 | . . 1 Attach 17 | 6 5 6 Detach 4 | . . 4 Swap 12 | . 10 2 Drop 8 | . 5 3 Fire 68 | 1 64 3 Melee 3 | . 3 . Ram . | . . . Kick . | . . . Crush . | . . . Escape Stasis . | . . . Rewire . | . . . Trap . | . . . Miscellaneous . | . . . Route ------- -11/Scrapyard -10/Materials -10/Mines History --------- Turn | Location | Event 5 | -11/Scrapyard | Discovered new exit (range 16) 69 | -11/Scrapyard | Entered Materials 84 | -10/Materials | Identified exit to Mines 301 | -10/Materials | Build established: Mutant 440 | -10/Materials | Repaired Broken Lgt. Treads 1204 | -10/Materials | Entered Mines 1205 | -10/Mines | Assembled infested the area 1210 | -10/Mines | Assisted by a Guerilla fighting off Assembled 1250 | -10/Mines | Core integrity fell below 50% 1260 | -10/Mines | Core integrity fell below 20% 1266 | -10/Mines | YI-UF0 nonchalantly dropped a Grenade Launcher on the ground 1274 | -10/Mines | Met a Derelict who couldn't figure out how to use a Trap Extractor 1281 | -10/Mines | Destroyed by YI-UF0 with YI-UF0's Doublenader Last Messages --------------- Launcher on the ground. 01267_ System corrupted: Heat flow error (+298). 01268_ Acquired Grenade Launcher. 01269_ YI-UF0: "BAROOM!" 01271_ The unstable cave ceiling collapses. 01271_ YI-UF0: "KAPOW!" 01271_ as-67597 destroyed. 01272_ YI-UF0: "Whaaaaaaaa!" 01273_ Flight Unit destroyed. 01274_ 5G-91U(g): "So I found this thing but I have no idea how to use it. And who the hell trapped this place to begin with?!" 01274_ 5G-91U(g): "I give up! Here you try, I'm outta here before something nasty happens..." 01274_ Tosses Imp. Trap Extractor to the ground. 01275_ SHOP.Sys disabled. 01277_ Lgt. Armor Plating destroyed. 01277_ 5G-91U(g) destroyed. 01279_ Machine disabled. 01281_ Lgt. Treads destroyed. Map ----- +----------------------------------------------------+ | | | | | | | | | | | | | | | | | | | | | | | | | | | | | | | | | | | | | | | | | ????????????????????????? # ###?????? | | ??????????????????????### "#?????? | | ?????????????????????## =/!!!#?????? | | ?????????????????????# ! #??????? | | ??????######??#####??# !#??????? | | ####### # # ##?# @ ""####????? | | # ## !% ##???? | | # # = ##??? | | # ### % #??? | | # #### g #?? | | ### # ## #?? | | #####?########## ##?? | | #??????????????## # #??? | | ##???????????????###### ##??? | | ##?????????????????????? #???? | | # #??????????????????????? #???? | | ## ##?????????????????????? ##???? | | ?# ####??????????????????? ##????? | | ?## ######??????????????? ##?????? | | ??# ##?????????????? ##??????? | | ??# ##?????????????##???????? | | ??# ##?????????????????????? | | ??## #?????????????????????? | | ???##### ## #?????????????????????? | | ############# ##?????????????????????? | | T#?????# #??????????????????????? | | ##?????# #??????????????????????? | | #????### "#####?????????????????? | | #????# #?????????????????? | | #????# """ " " #?????????????????? | +----------------------------------------------------+ Best States ------------- Heat Dissipation 25 Energy Generation 10 Energy Capacity 250 Matter Stores 300 Matter Capacity 300 Sight Range 16 Robot Scan Range 14 Terrain Scan Density 10 Evasion (%) 62 Recoil Reduction 2 Offensive Hacking 10 Item Schematics ----------------- None Robot Schematics ------------------ None Fabricated ------------ Nothing Alien Tech Used ----------------- None Achievements -------------- Dynamic Key Challenges ------------ None Game ------ Seed HellfireMagneticBank Manual? 0 Play Time 00:14:11 Cumulative 27.2 hours Start 2024.04.11 @ 17:56:17 End 2024.04.11 @ 18:10:28 Sessions 1 Manual Loads 0 Difficulty Rogue Special Mode None Game No. 17 Rogue 17 Adventurer 0 Explorer 0 Win Type - Total 0 Types 0/0/0/0/0/0/0/0/0 Lore% 22 Gallery% 26 Achievement% 21 Wizard Run 0 Options --------- Layout 1 ASCII 0 Keyboard 0 Movement Mouse Keybinds 0 Fullscreen 1 Font 24/Smallcaps Map View 50x35 Zoom Use 0% Tactical HUD 1 Map Filters NONE Filters NONE Steam 1 RUN: 1606cc4b-1c65-415b-9099-cca6e6d50e55